bitfinex/quotes_ETHUSD_20240916
["timestamp","ask_amount","ask_price","bid_price","bid_amount"]
[1726499868030,0.91390607,2291.1,2291.0,0.1082249]
[1726499868228,0.91390607,2291.1,2290.9,0.10824252]
[1726499868470,0.91390607,2291.1,2291.0,0.10823356]
[1726499868833,0.91390607,2291.1,2290.8,4.36528]
[1726499869035,0.91390607,2291.1,2291.0,0.10823356]
[1726499869229,0.91390607,2291.1,2290.9,0.10824252]
[1726499869436,0.91390607,2291.1,2291.0,0.10823356]
[1726499869846,0.91390607,2291.1,2290.8,4.36528]
[1726499870058,2.30579813,2291.1,2291.0,0.10823356]
[1726499870261,4.45544412,2291.1,2290.9,0.10824252]
[1726499870512,4.45544412,2291.1,2291.0,0.10825089]
[1726499870513,3.3832527,2291.1,2291.0,0.10825089]
[1726499870699,3.3832527,2291.1,2290.7,4.36538]
[1726499870700,4.45593358,2291.1,2290.7,4.36541]
[1726499870897,7.74804836,2291.1,2290.6,7.36551]
[1726499871122,1.98853167,2291.0,2290.7,0.10827776]
[1726499871326,7.74804836,2291.1,2290.7,0.10827776]
[1726499872002,3.38332836,2291.1,2290.7,4.47371776]
[1726499872719,3.38332836,2291.1,2290.8,4.36525]
[1726499873025,0.91592836,2291.2,2290.9,4.47332448]
[1726499873399,0.91592836,2291.2,2290.9,4.60602448]
[1726499873601,1.9883602,2291.1,2290.9,0.10829448]
[1726499873921,0.91592836,2291.1,2290.9,0.10829448]
[1726499874637,2.4522,2291.0,2290.9,0.10829448]
[1726499874805,2.4522,2291.0,2290.8,4.36525]
[1726499874999,2.4522,2291.0,2290.9,0.10823386]
[1726499875196,2.4522,2291.0,2290.7,8.73082]
[1726499875530,2.4522,2291.0,2290.9,0.10823386]
[1726499877428,2.4522,2291.0,2290.6,7.36563]
[1726499877429,4.44069635,2291.0,2290.6,7.36563]
[1726499877591,13.55223755,2291.0,2290.9,0.10827715]
[1726499877791,4.36514,2290.9,2290.4,7.36603]
[1726499878042,4.36579,2290.6,2290.1,4.3666]
[1726499878247,0.9159768,2290.6,2290.1,4.3666]
[1726499878536,1.98865176,2290.6,2290.1,4.3666]
[1726499879595,1.98865176,2290.6,2290.2,4.36642]
[1726499879796,8.21284521,2290.7,2290.4,4.36604]
[1726499879797,3.3892768,2290.7,2290.4,4.36604]
[1726499880010,2.4733,2290.7,2290.4,4.36604]
[1726499880294,2.4733,2290.7,2290.4,4.36591]
[1726499880494,0.9159768,2290.8,2290.6,4.36553]
[1726499880707,2.3505,2291.0,2290.9,4.36509]
[1726499880708,0.9159768,2291.0,2290.9,4.36509]
[1726499880908,1.37396521,2291.1,2290.9,4.36509]
[1726499880909,0.9159768,2291.1,2290.9,4.36509]
[1726499881132,0.9159768,2291.1,2290.9,4.365]
[1726499881359,1.37396521,2291.3,2291.1,4.36471]
[1726499881360,0.9159768,2291.2,2291.1,4.36471]
[1726499881636,4.15374756,2291.4,2291.2,4.36452]
[1726499881637,0.9159768,2291.4,2291.2,4.36452]
[1726499881939,0.9159768,2291.4,2291.2,4.88827226]
[1726499882141,0.9159768,2291.4,2291.1,4.49741]
[1726499882328,0.9159768,2291.4,2291.1,4.4973]
[1726499882526,0.9159768,2291.4,2291.1,8.8619]
[1726499882820,0.9159768,2291.4,2291.2,4.3645]
[1726499883336,0.9159768,2291.4,2291.2,4.45178008]
[1726499884230,0.9159768,2291.5,2291.2,4.45178008]
[1726499884433,0.9159768,2291.4,2291.3,4.36433]
[1726499884606,1.98829633,2291.4,2291.3,4.36433]
[1726499884798,0.9159768,2291.5,2291.4,4.36414]
[1726499884999,1.98825992,2291.5,2291.4,4.36414]
[1726499885298,1.98828544,2291.5,2291.4,4.36414]
[1726499885529,1.98828544,2291.5,2291.4,4.47200007]
[1726499886539,0.9159768,2291.6,2291.5,4.49665]
[1726499886735,1.37396521,2291.8,2291.5,4.49665]
[1726499886736,0.9159768,2291.7,2291.5,4.6044838]
[1726499887046,0.9159768,2291.7,2291.5,4.69175357]
[1726499887874,0.9159768,2291.8,2291.5,4.69175357]
[1726499888053,0.9159768,2291.7,2291.5,0.32780357]
[1726499888267,0.9159768,2291.7,2291.5,0.2405338]
[1726499888429,0.9159768,2291.7,2291.5,0.1078338]
[1726499888629,0.9159768,2291.7,2291.4,4.36395]
[1726499888932,0.9159768,2291.7,2291.5,0.1078338]
[1726499889344,3.2208768,2291.6,2291.5,0.1078338]
[1726499889568,4.29314203,2291.6,2291.4,4.36404]
[1726499889770,1.37396521,2291.8,2291.5,4.47099599]
[1726499889771,0.9159768,2291.7,2291.5,4.47099599]
[1726499890375,0.9159768,2291.7,2291.5,0.10704599]
[1726499891252,0.9159768,2291.7,2291.5,4.47099599]
[1726499893168,0.9159768,2291.8,2291.5,4.60369599]
[1726499893571,0.9159768,2291.8,2291.5,4.60360599]
[1726499893765,0.9159768,2291.9,2291.7,4.36357]
[1726499893967,0.9159768,2291.9,2291.7,4.36348]
[1726499894274,0.9159768,2291.9,2291.8,0.10705376]
[1726499894477,0.9159768,2292.0,2291.8,4.47039376]
[1726499894685,0.9159768,2292.0,2291.8,4.36334]
[1726499894927,0.9159768,2292.0,2291.9,0.10700153]
[1726499895264,1.99027333,2292.0,2291.9,0.10700153]
[1726499895486,1.99027333,2292.0,2291.9,4.47019153]
[1726499895698,1.99027333,2292.0,2291.9,0.10700153]
[1726499895898,3.18359694,2292.0,2291.9,0.10700153]
[1726499896202,3.64260384,2292.0,2291.7,4.3634]
[1726499896408,1.99018718,2291.9,2291.7,4.3634]
[1726499896566,2.10819577,2292.0,2291.8,0.10682009]
[1726499896771,1.98991162,2291.9,2291.6,4.36375]
[1726499897087,0.91487216,2291.9,2291.7,0.10682904]
[1726499897293,2.2961,2291.8,2291.7,0.10682904]
[1726499897971,0.91487216,2292.0,2291.7,4.6902408]
[1726499898277,0.91487216,2292.0,2291.8,4.36335]
[1726499898696,0.91487216,2292.0,2291.9,0.10681114]
[1726499899010,1.98954446,2292.0,2291.9,0.10681114]
[1726499899211,0.91487216,2292.1,2291.9,0.10681114]
[1726499899574,0.91487216,2292.1,2291.9,4.46999114]
[1726499900514,0.91487216,2292.1,2291.9,0.10681114]
[1726499900687,0.91487216,2292.1,2291.9,4.46997114]
[1726499901602,3.21097216,2292.2,2291.9,4.46991114]
[1726499901828,8.38487216,2292.3,2292.0,4.36282]
[1726499901978,0.91487216,2292.4,2292.2,4.36246]
[1726499902174,1.41225331,2292.5,2292.4,11.72448]
[1726499902175,0.0382881,2292.5,2292.4,11.72448]
[1726499902423,0.0382881,2292.5,2292.4,11.83083969]
[1726499902616,0.0382881,2292.5,2292.4,13.49379826]
[1726499902823,0.0382881,2292.5,2292.4,17.98873826]
[1726499902980,0.0382881,2292.5,2292.4,22.46747312]
[1726499903180,0.0382881,2292.5,2292.4,14.17649826]
[1726499904600,0.0382881,2292.5,2292.4,18.10523312]
[1726499904801,0.0382881,2292.5,2292.4,22.46747312]
[1726499907579,0.0382881,2292.5,2292.4,18.10523312]
[1726499907783,0.0382881,2292.5,2292.4,14.17649826]
[1726499913954,0.0382881,2292.5,2292.4,14.04379826]
[1726499916719,0.0382881,2292.5,2292.4,14.17649826]
[1726499919919,0.0382881,2292.5,2292.4,22.46747312]
[1726499923236,0.0382881,2292.5,2292.4,26.82971312]
[1726499923460,0.0382881,2293.9,2293.8,4.35957]
[1726499923620,0.0382881,2293.9,2293.4,4.36022]
[1726499923822,0.0382881,2293.9,2293.8,0.10473821]
[1726499924050,0.0382881,2293.9,2293.6,4.35993]
[1726499924255,0.0382881,2293.9,2293.8,0.10471227]
[1726499924435,0.0382881,2293.9,2293.8,1.27527271]
[1726499924640,0.0382881,2293.9,2293.8,1.37998498]
[1726499924855,0.0382881,2293.9,2293.8,5.73955498]
[1726499926368,0.0382881,2293.9,2293.8,10.09912498]
[1726499926990,0.0382881,2293.9,2293.8,13.09912498]
[1726499927960,0.00934657,2293.9,2293.8,13.09912498]
[1726499929794,2.29604657,2293.9,2293.8,4.46428227]
[1726499930103,2.29604657,2293.9,2293.8,0.10471227]
[1726499930252,2.29604657,2293.9,2293.8,4.46428227]
[1726499931189,0.00934657,2293.9,2293.8,8.82385227]
[1726499931397,0.00934657,2293.9,2293.8,10.09911098]
[1726499932369,0.00934657,2293.9,2293.8,13.09911098]
[1726499933900,0.00934657,2293.9,2293.8,0.10471227]
[1726499934070,0.00934657,2293.9,2293.8,3.10471227]
[1726499934269,0.00934657,2293.9,2293.8,7.46428227]
[1726499935799,2.49204657,2293.9,2293.8,3.10471227]
[1726499936361,2.49204657,2293.9,2293.8,7.46428227]
[1726499936595,2.49204657,2293.9,2293.8,3.10471227]
[1726499936982,2.49204657,2293.9,2293.8,7.46428227]
[1726499937189,2.49204657,2293.9,2293.8,0.10471227]
[1726499938417,2.49204657,2293.9,2293.8,4.46428227]
[1726499940017,2.36114657,2293.9,2293.8,4.46428227]
[1726499940385,2.36114657,2293.9,2293.8,0.10471227]
[1726499940628,2.36114657,2293.9,2293.8,4.46428227]
[1726499941533,0.00934657,2293.9,2293.8,4.46428227]
[1726499941913,0.00934657,2293.9,2293.8,10.23398598]
[1726499942503,0.00934657,2293.9,2293.8,4.46428227]
[1726499942703,0.00934657,2293.9,2293.8,0.10471227]
[1726499942905,2.39884657,2293.9,2293.8,0.10471227]
[1726499943295,11.11760657,2293.9,2293.8,0.10471227]
[1726499943500,11.11760657,2293.9,2293.3,4.36039]
[1726499943501,2.4227,2293.7,2293.3,4.36039]
[1726499943834,2.4227,2293.7,2293.3,8.72083]
[1726499943987,2.4227,2293.7,2293.2,3.92873486]
[1726499944189,2.4227,2293.7,2293.4,4.3603]
[1726499944395,2.4227,2293.7,2293.5,4.36006]
[1726499946043,2.4227,2293.7,2293.6,4.35995]
[1726499946225,2.33934657,2293.9,2293.6,4.35995]
[1726499947263,0.00934657,2293.9,2293.8,8.71914]
[1726499947482,0.00934657,2293.9,2293.8,10.11878749]
[1726499949648,2.42054657,2293.9,2293.7,4.35973]
[1726499949869,2.42054657,2293.9,2293.5,4.35997]
[1726499950055,2.66260123,2293.9,2293.5,4.35997]
[1726499950249,2.66260123,2293.9,2293.6,4.35995]
[1726499950449,2.42054657,2293.9,2293.6,4.35995]
[1726499950678,2.42054657,2293.9,2293.8,4.35957]
[1726499950863,0.00934657,2293.9,2293.8,4.35957]
[1726499951072,0.00934657,2293.9,2293.8,8.71914]
[1726499951648,0.00934657,2293.9,2293.8,0.09632261]
[1726499951880,2.28334657,2293.9,2293.8,0.09632261]
[1726499952149,2.28334657,2293.9,2293.8,0.0963658]
[1726499952367,7.30697623,2293.9,2293.2,4.36057]
[1726499952570,7.30697623,2293.9,2292.6,0.4376]
[1726499952571,2.274,2293.5,2293.0,4.36095]
[1726499952799,2.274,2293.5,2293.2,4.36071]
[1726499953097,2.274,2293.5,2293.3,0.09299618]
[1726499953261,2.274,2293.5,2293.0,4.36097]
[1726499953469,6.63424,2293.5,2293.4,0.0930045]
[1726499953649,2.274,2293.3,2292.8,4.36133]
[1726499953852,2.274,2293.3,2292.5,2.72659591]
[1726499953853,2.274,2293.2,2292.7,8.72307]
[1726499954163,2.274,2293.0,2292.5,4.36191]
[1726499954368,0.91487216,2293.2,2293.1,4.3609]
[1726499954573,3.18887216,2293.7,2293.0,8.28964486]
[1726499954899,3.18887216,2293.7,2293.0,4.36091]
[1726499955067,2.274,2293.7,2293.2,4.36071]
[1726499955476,3.16718539,2293.7,2293.2,4.36071]
[1726499956898,6.83596,2293.6,2293.0,4.36103]
[1726499957119,2.476,2293.3,2292.8,4.3613]
[1726499957327,2.2832,2293.2,2292.6,4.36171]
[1726499957634,2.2832,2293.2,2292.3,1.3486]
[1726499957635,2.2832,2292.8,2292.3,4.3624]
[1726499957770,2.2832,2292.8,2292.0,5.27733486]
[1726499957968,2.2832,2292.8,2292.2,3.92873486]
[1726499958193,2.2832,2292.8,2292.7,4.36166]
[1726499958581,2.2832,2292.8,2292.6,4.36172]
[1726499958903,2.2832,2292.8,2292.7,4.36166]
[1726499959104,2.2576,2293.1,2292.8,4.3614]
[1726499959307,2.2576,2293.1,2292.7,4.36166]
[1726499961607,2.2576,2293.1,2292.7,4.36155]
[1726499962709,2.2576,2293.1,2292.7,8.72312]
[1726499962907,2.2576,2293.1,2292.7,4.36155]
[1726499963111,2.2576,2293.1,2292.8,4.36146]
[1726499963272,6.61852,2293.1,2292.6,4.36182]
[1726499963468,2.2576,2293.1,2292.7,4.36156]
[1726499965721,2.2576,2293.1,2292.8,4.36145]
[1726499966428,3.01090022,2293.1,2292.6,8.72356]
[1726499966581,3.01090022,2293.1,2292.9,0.08811655]
[1726499966778,3.01090022,2293.1,2292.7,4.36164]
[1726499966974,2.2576,2293.1,2292.8,0.08812549]
[1726499967177,2.2576,2293.1,2292.7,4.36164]
[1726499967391,2.2576,2293.1,2292.8,0.08811687]
[1726499967607,2.2576,2293.1,2292.7,4.36164]
[1726499967809,2.2576,2293.1,2293.0,4.36109]
[1726499968029,2.2576,2293.1,2293.0,0.08809899]
[1726499968233,2.2576,2293.1,2292.9,4.36121]
[1726499968521,2.2576,2293.1,2293.0,4.44959402]
[1726499969390,2.2576,2293.1,2293.0,5.33067442]
[1726499971021,5.73400521,2293.6,2293.0,4.89831928]
[1726499971022,2.3556,2293.4,2293.0,4.89831928]
[1726499971231,2.3556,2293.6,2293.5,4.36014]
[1726499971385,2.3556,2293.8,2293.5,4.36014]
[1726499971737,2.3556,2293.8,2293.6,0.08828664]
[1726499972018,2.3556,2293.8,2293.5,4.36009]
[1726499972219,2.3556,2293.8,2293.6,0.08828664]
[1726499973417,2.3556,2293.8,2293.6,4.44822664]
[1726499973621,0.00934657,2293.9,2293.8,4.35957]
[1726499973987,0.00934657,2293.9,2293.8,8.80696077]
[1726499974184,0.00934657,2293.9,2293.8,4.44739077]
[1726499974731,0.00934657,2293.9,2293.8,0.08782077]
[1726499975729,0.00934657,2293.9,2293.7,4.35968]
[1726499975730,2.49174657,2293.9,2293.7,4.35968]
[1726499975889,2.49174657,2293.9,2293.8,0.08782077]
[1726499976502,2.49174657,2293.9,2293.6,8.71969]
[1726499976819,2.49174657,2293.9,2293.7,4.4475797]
[1726499977121,2.49174657,2293.9,2293.7,0.0878297]
[1726499978120,2.49174657,2293.9,2293.8,4.35957]
[1726499978328,0.00934657,2293.9,2293.8,4.44739077]
[1726499978508,0.00934657,2293.9,2293.8,9.68767385]
[1726499978710,0.00934657,2293.9,2293.8,8.80696077]
[1726499979027,0.00934657,2293.9,2293.8,4.44739077]
[1726499980707,0.00934657,2293.9,2293.8,8.80696077]
[1726499981248,0.00934657,2293.9,2293.8,20.09526563]
[1726499981544,0.00934657,2293.9,2293.8,22.67562819]
[1726499983848,0.95316026,2294.6,2294.5,13.07472]
[1726499984058,0.95316026,2294.6,2294.5,22.94245486]
[1726499984059,0.0382881,2294.6,2294.5,22.94245486]
[1726499984209,1.83074756,2295.8,2295.5,4.606]
[1726499984210,1.37396521,2295.7,2295.5,4.606]
[1726499984415,0.45650947,2295.9,2295.6,4.43940005]
[1726499984643,0.0382881,2296.0,2295.6,4.43940005]
[1726499984844,0.0382881,2296.0,2295.6,0.08339005]
[1726499985250,0.0382881,2296.0,2295.7,4.35593]
[1726499985407,0.0382881,2296.0,2295.7,0.08231425]
[1726499985612,0.0382881,2296.0,2295.5,3.0]
[1726499985911,0.0382881,2296.0,2295.7,4.3558]
[1726499986113,0.0382881,2296.0,2295.6,0.08232317]
[1726499986334,0.0382881,2296.0,2295.5,8.71236]
[1726499986540,0.0382881,2296.0,2295.7,2.52604878]
[1726499986848,0.0382881,2296.0,2295.9,7.35559]
[1726499987329,0.0382881,2296.0,2295.9,3.07717086]
[1726499987883,0.0382881,2296.0,2295.9,0.07717086]
[1726499988181,0.0382881,2296.0,2295.7,3.0]
[1726499988344,0.0382881,2296.0,2295.9,0.07416917]
[1726499988550,0.0382881,2296.0,2295.8,4.42980808]
[1726499988752,0.0382881,2296.0,2295.9,0.07416917]
[1726499989082,2.3482881,2296.0,2295.9,0.07416917]
[1726499989375,2.3482881,2296.0,2295.6,4.35601]
[1726499989574,2.3482881,2296.0,2295.9,0.07416917]
[1726499989732,2.3482881,2296.0,2295.5,7.35618]
[1726499989934,3.45415091,2296.0,2295.9,0.07416917]
[1726499990133,3.45415091,2296.0,2295.6,4.35606]
[1726499990378,2.3482881,2296.0,2295.9,0.07416917]
[1726499990583,2.3482881,2296.0,2295.7,4.35596]
[1726499990917,2.3482881,2296.0,2295.8,0.07351142]
[1726499991062,2.3482881,2296.0,2295.6,4.35605]
[1726499991270,7.37404991,2296.0,2295.9,0.0735025]
[1726499991460,7.37404991,2296.0,2295.5,7.35633]
[1726499991461,3.01861991,2296.0,2295.6,4.35614]
[1726499991669,2.3482881,2296.0,2295.9,0.0735025]
[1726499991836,2.3482881,2296.0,2295.6,4.35614]
[1726499992039,2.3482881,2296.0,2295.7,0.07352034]
[1726499992385,4.59042881,2295.9,2295.4,4.35643]
[1726499992541,0.23482881,2295.9,2295.8,0.07351142]
[1726499993030,0.23482881,2295.9,2295.6,4.35605]
[1726499993235,2.3482881,2296.0,2295.7,0.07352034]
[1726499993455,2.3482881,2296.0,2295.4,4.35635]
[1726499993656,2.3482881,2296.0,2295.8,0.07351142]
[1726499993657,0.23482881,2295.9,2295.8,0.07351142]
[1726499993876,0.23482881,2295.9,2295.5,4.35628]
[1726499994106,0.0382881,2296.0,2295.8,0.0736657]
[1726499994382,0.0382881,2296.0,2295.6,4.35604]
[1726499994586,0.0382881,2296.0,2295.9,0.07367392]
[1726499994790,0.0382881,2296.0,2295.5,4.35634]
[1726499994998,6.7589681,2296.0,2295.9,0.07367392]
[1726499995308,4.35647,2295.5,2295.0,4.3572]
[1726499995453,4.35647,2295.5,2294.8,4.3575]
[1726499995454,4.35673,2295.3,2294.8,4.3575]
[1726499995906,2.3863,2295.4,2295.0,4.35719]
[1726499996399,2.3863,2295.4,2294.9,4.3573]
[1726499996400,2.2843,2295.8,2295.1,4.35704]
[1726499996552,6.64022,2295.8,2295.3,4.35671]
[1726499996752,3.45531249,2295.8,2295.4,4.35653]
[1726499996953,7.81118249,2295.8,2295.4,0.07130457]
[1726499997397,4.35597,2295.7,2295.4,0.07130457]
[1726499998431,5.57267025,2295.7,2295.4,0.07130457]
[1726499998577,5.57267025,2295.7,2295.2,4.35685]
[1726499998766,8.7123,2295.6,2295.5,0.07129565]
[1726499998963,4.3565,2295.5,2295.0,7.35728]
[1726499999768,4.35638,2295.5,2295.0,7.35728]
[1726500000065,4.35665,2295.4,2295.0,3.0]
[1726500000462,4.99221473,2295.5,2295.0,7.35725]
[1726500000868,4.35664,2295.4,2295.0,3.0]
[1726500001410,4.35712,2295.1,2294.6,4.35804]
[1726500001561,4.35712,2295.1,2294.5,4.35814]
[1726500001562,4.35739,2295.0,2294.5,4.35814]
[1726500001777,2.3742,2295.3,2294.1,2.2529]
[1726500001778,4.35765,2294.9,2294.1,2.2529]
[1726500001996,6.84627,2294.8,2294.3,4.35851]
[1726500002228,6.84627,2294.8,2294.3,5.019651]
[1726500002403,6.84627,2294.8,2294.1,6.61175]
[1726500002404,4.358,2294.7,2294.2,4.3588]
[1726500002557,4.358,2294.7,2294.1,4.35888]
[1726500002761,6.84627,2294.8,2294.3,4.3586]
[1726500004607,2.3593,2295.0,2294.3,6.71739]
[1726500004804,2.3593,2295.0,2294.5,4.35815]
[1726500005098,2.3593,2295.0,2294.6,4.35798]
[1726500005399,2.3593,2295.3,2295.0,4.35729]
[1726500005583,2.3593,2295.3,2294.7,0.435798]
[1726500005759,4.35646,2295.5,2294.4,3.4794488]
[1726500005760,4.35644,2295.5,2295.0,4.35728]
[1726500006201,4.35644,2295.5,2295.1,4.3571]
[1726500006630,2.426,2295.6,2295.2,4.35689]
[1726500006833,6.7822,2295.6,2295.1,4.3571]
[1726500007054,4.35638,2295.5,2294.9,11.735713]
[1726500007205,4.3568,2295.3,2294.8,7.35756]
[1726500007409,4.35655,2295.4,2294.9,4.35745]
[1726500007645,7.896072,2295.6,2294.7,2.2917]
[1726500007805,6.78224,2295.6,2295.0,4.35712]
[1726500008004,6.78224,2295.6,2295.2,4.35691]
[1726500008847,6.78224,2295.6,2295.0,4.792832]
[1726500008848,4.35646,2295.5,2295.0,4.792812]
[1726500009015,4.35646,2295.5,2295.0,9.150002]
[1726500009218,6.78224,2295.6,2295.1,4.35697]
[1726500009416,11.13856,2295.6,2295.1,4.35697]
[1726500009753,2.3857,2295.9,2295.5,4.35631]
[1726500010069,0.0382881,2296.0,2295.8,4.35565]
[1726500010273,0.0382881,2296.0,2295.6,4.35612]
[1726500010426,0.0382881,2296.0,2295.6,4.35605]
[1726500010739,0.0382881,2296.0,2295.6,4.35601]
[1726500010936,0.0382881,2296.0,2295.8,2.359]
[1726500011257,0.0382881,2296.0,2295.9,8.71118]
[1726500011842,0.0382881,2296.0,2295.9,8.78369179]
[1726500012669,0.0382881,2296.0,2295.9,16.68928179]
[1726500012965,0.0382881,2296.0,2295.9,19.15818179]
[1726500013177,0.0382881,2296.0,2295.9,22.22809556]
[1726500013664,0.0382881,2296.0,2295.9,26.58368556]
[1726500013865,0.0382881,2296.7,2296.6,11.77232]
[1726500014220,0.0382881,2296.7,2296.6,7.41806]
[1726500014427,0.0382881,2296.7,2296.6,9.15039797]
[1726500014836,0.0382881,2296.7,2296.6,1.73233797]
[1726500015135,0.0382881,2296.7,2296.6,0.07244938]
[1726500015336,0.015,2297.0,2296.6,0.07244938]
[1726500015337,2.2561,2296.9,2296.6,0.07244938]
[1726500015573,0.0149381,2296.7,2296.6,0.07244938]
[1726500016175,0.0149381,2296.7,2295.9,4.35549]
[1726500016176,4.35459,2296.5,2295.9,4.35543]
[1726500016333,2.2561,2296.6,2296.0,4.35529]
[1726500016644,0.04,2296.8,2296.1,2.2815]
[1726500016645,0.0149381,2296.5,2296.1,2.2815]
[1726500016844,0.0149381,2296.5,2296.4,4.35464]
[1726500017066,0.0149381,2296.5,2296.3,4.35481]
[1726500017275,0.0149381,2296.5,2296.3,4.3547]
[1726500017472,0.0149381,2296.5,2296.1,4.35507]
[1726500017906,0.0149381,2296.5,2295.6,4.791749]
[1726500017907,6.69626,2296.4,2295.7,4.3558]
[1726500018250,6.69626,2296.4,2295.9,4.35555]
[1726500018450,2.3564381,2296.4,2295.9,4.35556]
[1726500018649,3.02751591,2296.4,2295.9,4.35556]
[1726500019203,3.02751591,2296.4,2296.0,4.35534]
[1726500019489,0.0149381,2296.4,2296.3,4.35483]
[1726500019696,0.0149381,2296.4,2296.3,7.35483]
[1726500020046,0.0149381,2296.4,2296.3,3.0]
[1726500020362,0.0149381,2296.4,2296.3,7.35483]
[1726500020568,0.0149381,2296.4,2296.3,8.753947]
[1726500020757,0.0149381,2296.4,2296.3,13.108777]
[1726500021285,0.0149381,2296.4,2296.3,17.463607]
[1726500021603,0.0149381,2296.4,2296.3,19.919807]
[1726500021954,0.0149381,2296.4,2296.3,17.638191]
[1726500023898,0.0149381,2296.4,2296.3,24.937021]
[1726500025261,0.0149381,2296.4,2296.3,20.582191]
[1726500026286,0.0149381,2296.4,2296.3,29.291851]
[1726500026507,0.04,2296.8,2296.7,17.41628]
[1726500026705,0.04,2296.8,2296.7,23.16931594]
[1726500026989,0.04,2296.8,2296.7,23.2397162]
[1726500027391,0.04,2296.8,2296.7,23.7897162]
[1726500027898,0.04,2296.8,2296.7,18.96351026]
[1726500028106,0.0555901,2297.0,2296.8,11.70776]
[1726500028107,0.04,2296.9,2296.8,11.70776]
[1726500028395,0.04,2296.9,2296.8,16.06164]
[1726500028550,0.04,2296.9,2296.8,16.1315431]
[1726500028753,0.04,2296.9,2296.8,18.74358721]
[1726500031286,0.04,2296.9,2296.8,14.38970721]
[1726500032158,6.78839,2296.9,2296.8,0.11540179]
[1726500032397,6.78839,2296.9,2296.3,0.174584]
[1726500032398,6.74927,2296.5,2296.3,0.174584]
[1726500032758,2.3947,2296.5,2296.4,0.11162439]
[1726500033068,2.3947,2296.5,2296.1,4.35508]
[1726500033269,2.3947,2296.5,2296.3,4.35481]
[1726500033465,2.3159,2296.8,2296.4,4.3545]
[1726500033665,2.3159,2296.8,2296.4,0.11162439]
[1726500033666,6.66982,2296.8,2296.4,0.11162439]
[1726500033897,7.77774301,2296.8,2296.4,0.11162439]
[1726500034060,2.3159,2296.8,2296.5,4.35435]
[1726500034384,2.3159,2296.8,2296.7,4.35407]
[1726500034385,0.04,2296.8,2296.7,4.35407]
[1726500034661,0.04,2296.9,2296.8,16.06164]
[1726500034859,0.04,2296.9,2296.8,16.61978807]
[1726500037881,0.04,2296.9,2296.8,21.52366807]
[1726500038135,0.04,2296.9,2296.8,17.16978807]
[1726500039827,0.04,2296.9,2296.8,21.52366807]
[1726500040032,0.04,2296.9,2296.8,17.16978807]
[1726500040535,0.04,2296.9,2296.8,16.61978807]
[1726500042364,0.04,2296.9,2296.8,12.26590807]
[1726500042553,0.04,2296.9,2296.8,8.81934081]
[1726500043971,0.04,2296.9,2296.8,11.81934081]
[1726500045561,0.04,2296.9,2296.8,16.17322081]
[1726500046101,0.04,2296.9,2296.8,11.81934081]
[1726500046369,0.04,2296.9,2296.8,12.58824734]
[1726500047237,0.04,2296.9,2296.8,11.81934081]
[1726500047454,0.04,2296.9,2296.8,4.46546081]
[1726500047908,0.04,2296.9,2296.8,0.11158081]
[1726500048057,2.5119,2296.9,2296.8,0.11158081]
[1726500048255,2.5119,2296.9,2296.1,4.35519]
[1726500048256,2.4719,2296.8,2296.1,4.35519]
[1726500048455,2.72864901,2296.8,2296.4,4.3545]
[1726500048650,2.4719,2296.8,2296.4,4.3545]
[1726500049595,2.4719,2296.8,2296.6,4.35416]
[1726500049895,2.4719,2296.8,2296.7,4.35407]
[1726500050198,2.4719,2296.8,2296.6,4.35416]
[1726500050199,0.04,2296.9,2296.8,8.70776]
[1726500055723,0.04,2296.9,2296.8,16.06164]
[1726500056098,0.04,2296.9,2296.8,20.96552]
[1726500056518,0.04,2296.9,2296.8,16.61164]
[1726500056704,0.04,2296.9,2296.8,19.06315609]
[1726500057139,0.04,2296.9,2296.8,14.15927609]
[1726500057319,0.04,2296.9,2296.8,11.81858709]
[1726500058446,0.04,2296.9,2296.8,7.46470709]
[1726500058775,0.04,2296.9,2296.8,0.11082709]
[1726500059082,0.04,2296.9,2296.6,8.70843]
[1726500059083,2.3689,2296.9,2296.6,8.70843]
[1726500059238,2.3689,2296.9,2296.8,0.10710506]
[1726500059441,2.83911635,2296.9,2296.7,0.10713308]
[1726500059648,2.83911635,2296.9,2296.6,4.35417]
[1726500059649,2.3689,2296.9,2296.8,0.10712219]
[1726500059961,2.3689,2296.9,2296.8,4.35388]
[1726500060163,2.3689,2296.9,2296.8,0.10738767]
[1726500060366,2.3689,2296.9,2296.7,4.35396]
[1726500060684,2.3689,2296.9,2296.8,0.10738767]
[1726500061066,2.3689,2296.9,2296.7,4.35397]
[1726500061270,2.3689,2296.9,2296.8,4.46126767]
[1726500061880,2.3689,2296.9,2296.8,8.81514767]
[1726500062182,2.3689,2296.9,2296.8,11.81514767]
[1726500062183,0.04,2296.9,2296.8,11.81514767]
[1726500062403,0.04,2296.9,2296.8,16.16902767]
[1726500062578,0.0955901,2297.0,2296.9,14.12888]
[1726500062755,0.0955901,2297.0,2296.9,11.81474822]
[1726500063175,0.0955901,2297.0,2296.9,4.46105822]
[1726500063359,0.0955901,2297.0,2296.9,8.81474822]
[1726500063562,0.0955901,2297.0,2296.9,10.13162604]
[1726500063875,0.0955901,2297.0,2296.9,14.48531604]
[1726500064383,0.0955901,2297.0,2296.9,10.13162604]
[1726500066395,2.5084901,2297.0,2296.9,5.77793604]
[1726500066600,2.5084901,2297.0,2296.9,4.46105822]
[1726500067159,2.5084901,2297.0,2296.9,0.10736822]
[1726500068604,0.0955901,2297.0,2296.9,4.46105822]
[1726500070109,2.3742901,2297.0,2296.9,0.10736822]
[1726500070400,4.21345166,2297.0,2296.5,4.35444]
[1726500070570,2.438,2296.7,2296.6,0.1075379]
[1726500070772,3.35183502,2296.7,2296.4,4.35454]
[1726500071003,3.35183502,2296.7,2296.5,0.10754879]
[1726500071210,4.35446,2296.5,2295.8,4.35559]
[1726500071513,4.34809033,2296.4,2295.9,4.35553]
[1726500071661,3.29040364,2296.4,2295.9,4.35553]
[1726500071862,1.97143668,2296.3,2295.9,4.35553]
[1726500072170,1.97147037,2296.3,2295.8,8.71119]
[1726500072391,1.97147037,2296.3,2295.8,8.71125]
[1726500072392,2.3767,2296.2,2295.8,8.71125]
[1726500072572,2.3767,2296.2,2295.6,4.35609]
[1726500072786,2.91866538,2296.2,2295.7,4.35587]
[1726500073172,3.83236902,2296.2,2295.6,4.35602]
[1726500073404,0.59616192,2296.1,2295.6,8.71206]